bitfinex/quotes_BTCUSD_20220211
["timestamp","ask_amount","ask_price","bid_price","bid_amount"]
[1644611124562,0.75885402,42382.0,42381.0,0.01]
[1644611124966,0.50663127,42382.0,42381.0,0.01]
[1644611125268,0.0433,42382.0,42381.0,0.01]
[1644611125489,0.3,42394.0,42387.0,0.23095027]
[1644611125870,0.3,42394.0,42387.0,0.28095027]
[1644611126065,0.35075213,42392.0,42388.0,0.29011809]
[1644611126470,0.059025,42391.0,42388.0,0.29011809]
[1644611126871,0.05,42405.0,42388.0,0.29011809]
[1644611126872,9.804e-05,42406.0,42389.0,1.379813]
[1644611127084,9.804e-05,42406.0,42389.0,1.05]
[1644611127267,0.05,42409.0,42390.0,0.00990196]
[1644611127540,0.33065236,42409.0,42397.0,0.36378371]
[1644611127737,0.33065236,42409.0,42402.0,0.25553653]
[1644611127936,0.12920125,42413.0,42402.0,0.25553653]
[1644611127937,0.04009804,42413.0,42402.0,0.25553653]
[1644611128135,0.3,42412.0,42402.0,0.1]
[1644611128441,0.3,42412.0,42402.0,0.05]
[1644611128638,0.04009804,42403.0,42384.0,0.677006]
[1644611128834,0.05,42411.0,42384.0,0.677006]
[1644611128835,0.3,42410.0,42384.0,0.677006]
[1644611129047,0.07104528,42398.0,42394.0,0.00147267]
[1644611129237,0.05,42407.0,42394.0,0.00147267]
[1644611129238,0.04009804,42395.0,42394.0,0.00147267]
[1644611129435,0.45491655,42395.0,42394.0,0.00147267]
[1644611129637,0.49501459,42395.0,42383.0,0.49229661]
[1644611129837,0.44991655,42395.0,42392.0,0.00036818]
[1644611130036,0.04009804,42393.0,42392.0,0.00036818]
[1644611130236,0.09912404,42393.0,42392.0,0.00036818]
[1644611130640,0.44242404,42393.0,42392.0,0.00036818]
[1644611130848,0.44242404,42393.0,42377.0,0.0011]
[1644611130849,0.15,42390.0,42377.0,0.0011]
[1644611131177,0.28824021,42369.0,42366.0,0.00232022]
[1644611131371,0.21015913,42369.0,42366.0,0.00232022]
[1644611131572,0.59223235,42369.0,42366.0,0.00232022]
[1644611132171,0.14245504,42369.0,42366.0,0.00232022]
[1644611132375,0.14245504,42369.0,42368.0,0.42]
[1644611132574,0.17852782,42369.0,42368.0,0.42]
[1644611133273,0.17201287,42369.0,42368.0,0.42]
[1644611133677,0.12871287,42369.0,42368.0,0.42]
[1644611133882,0.12371287,42369.0,42368.0,0.42]
[1644611134074,0.46042309,42369.0,42366.0,0.00229698]
[1644611134274,0.36179651,42368.0,42366.0,0.00229698]
[1644611134473,0.33944517,42367.0,42366.0,0.0022]
[1644611134920,0.0433,42367.0,42366.0,0.0022]
[1644611135116,0.42805993,42367.0,42366.0,0.0022]
[1644611135319,0.32805993,42367.0,42366.0,0.0022]
[1644611136321,0.32805993,42367.0,42365.0,0.0011]
[1644611136524,0.32805993,42367.0,42349.0,0.15604622]
[1644611136525,0.13255509,42350.0,42349.0,0.15604622]
[1644611136723,0.13255509,42350.0,42345.0,0.0022]
[1644611136724,0.20943818,42350.0,42345.0,0.0022]
[1644611137027,0.20943818,42350.0,42341.0,0.00782029]
[1644611137028,0.06886546,42342.0,42341.0,0.00782029]
[1644611137217,0.07688309,42342.0,42341.0,0.00782029]
[1644611137419,0.40370717,42342.0,42341.0,0.00925664]
[1644611137618,0.0433,42342.0,42341.0,0.00925664]
[1644611137828,0.5411,42355.0,42341.0,0.00925664]
[1644611137829,0.177291,42351.0,42342.0,0.12989999]
[1644611138019,0.03368309,42359.0,42344.0,0.10196613]
[1644611138020,0.0433,42350.0,42344.0,0.10196613]
[1644611138219,0.0433,42352.0,42342.0,0.1463169]
[1644611138421,0.0001,42359.0,42346.0,0.30269819]
[1644611138422,0.07407051,42356.0,42346.0,0.30269819]
[1644611138661,0.03358309,42351.0,42346.0,0.109064]
[1644611138866,0.66618061,42355.0,42344.0,0.00010772]
[1644611138867,0.03358309,42347.0,42344.0,0.00010772]
[1644611139063,0.0433,42350.0,42344.0,0.00010772]
[1644611139562,0.0433,42350.0,42343.0,0.10273357]
[1644611139762,0.0433,42350.0,42345.0,0.22778382]
[1644611140063,0.0433,42350.0,42346.0,0.26539379]
[1644611140264,0.0433,42350.0,42347.0,0.09986522]
[1644611140462,0.0433,42350.0,42347.0,0.1]
[1644611140664,0.0433,42350.0,42346.0,0.26539379]
[1644611140862,0.0433,42350.0,42344.0,0.054079]
[1644611140863,0.12897917,42350.0,42344.0,0.054079]
[1644611141066,0.0433,42350.0,42343.0,0.118149]
[1644611141375,0.0433,42350.0,42330.0,0.43641691]
[1644611141376,0.05,42349.0,42324.0,0.73481838]
[1644611141566,0.118183,42344.0,42336.0,0.23917419]
[1644611141764,0.118183,42344.0,42334.0,0.42]
[1644611141765,0.118183,42344.0,42334.0,0.479091]
[1644611141962,0.08111082,42337.0,42334.0,0.47944879]
[1644611142167,0.08111082,42337.0,42334.0,0.42035779]
[1644611142615,0.059093,42338.0,42334.0,0.42035779]
[1644611143118,0.059093,42338.0,42324.0,0.69615346]
[1644611143119,0.05,42335.0,42324.0,0.69615346]
[1644611143318,0.05911,42328.0,42324.0,0.42]
[1644611143515,0.05,42337.0,42324.0,0.42]
[1644611143716,0.17733,42340.0,42325.0,0.29441548]
[1644611144021,0.07733,42340.0,42327.0,0.059098]
[1644611144216,0.27424125,42327.0,42324.0,0.42]
[1644611144416,0.05,42330.0,42327.0,0.53000913]
[1644611144417,0.1091051,42330.0,42327.0,0.53000913]
[1644611144615,0.0591051,42330.0,42327.0,0.53000913]
[1644611144816,0.14828303,42330.0,42327.0,0.53000913]
[1644611145016,0.05897256,42330.0,42327.0,0.53000913]
[1644611145617,0.118211,42333.0,42328.0,0.09455]
[1644611145816,0.0433,42339.0,42327.0,0.53000913]
[1644611146018,0.3433,42344.0,42327.0,0.53000913]
[1644611146260,0.08294742,42342.0,42327.0,0.53000913]
[1644611146461,0.3,42341.0,42339.0,0.36488402]
[1644611146667,0.05909345,42340.0,42327.0,0.53000913]
[1644611146860,0.32534645,42339.0,42332.0,0.00034081]
[1644611147060,0.05,42338.0,42332.0,0.00034081]
[1644611147261,0.05,42335.0,42332.0,0.00034081]
[1644611147862,0.05,42335.0,42327.0,0.73568527]
[1644611148061,0.059106,42328.0,42327.0,0.73568527]
[1644611148364,0.059106,42328.0,42327.0,0.53000913]
[1644611148762,0.058506,42328.0,42327.0,0.53000913]
[1644611149166,0.058506,42328.0,42327.0,1.05849541]
[1644611149361,0.059101,42331.0,42327.0,1.05849541]
[1644611149568,0.059101,42331.0,42326.0,6.405e-05]
[1644611149569,0.1,42328.0,42326.0,6.405e-05]
[1644611149766,1.05,42326.0,42322.0,0.31674718]
[1644611150015,1.1310661,42323.0,42322.0,0.31564718]
[1644611150210,1.1310661,42323.0,42313.0,0.00184997]
[1644611150211,0.07363491,42316.0,42313.0,0.00184997]
[1644611150421,0.9,42322.0,42313.0,0.00184997]
[1644611150422,0.04285,42317.0,42313.0,0.00184997]
[1644611150612,0.05,42314.0,42311.0,0.29462124]
[1644611150811,0.05,42312.0,42311.0,0.0011]
[1644611151225,0.05,42312.0,42302.0,0.09546191]
[1644611151226,0.05,42303.0,42302.0,0.09546191]
[1644611151411,0.118265,42313.0,42302.0,0.09546191]
[1644611151412,0.0385931,42307.0,42302.0,0.09546191]
[1644611151611,0.10101589,42310.0,42309.0,0.00034315]
[1644611151824,0.118265,42315.0,42309.0,0.00034315]
[1644611151825,0.05,42321.0,42311.0,1.05]
[1644611152018,0.4,42337.0,42311.0,1.05]
[1644611152019,0.3,42330.0,42311.0,1.05]
[1644611152214,0.168219,42330.0,42311.0,1.05]
[1644611152613,0.168219,42330.0,42313.0,0.81620825]
[1644611152614,0.05,42330.0,42313.0,0.81620825]
[1644611152820,0.3258774,42341.0,42313.0,0.81620825]
[1644611152821,0.10357132,42344.0,42325.0,0.1930956]
[1644611153017,0.10357132,42344.0,42325.0,0.1924956]
[1644611153018,0.0001,42344.0,42325.0,0.1924956]
[1644611153217,0.1,42350.0,42325.0,0.1924956]
[1644611153218,0.0001,42348.0,42327.0,0.329813]
[1644611153413,0.0001,42348.0,42330.0,0.329813]
[1644611153665,0.05,42350.0,42333.0,0.26575058]
[1644611153666,0.39511147,42342.0,42333.0,0.26575058]
[1644611153865,0.0001,42349.0,42331.0,0.1933]
[1644611153866,0.05,42344.0,42331.0,0.1933]
[1644611154063,0.05,42344.0,42331.0,0.15]
[1644611154261,0.32523982,42347.0,42331.0,0.15]
[1644611154262,0.0001,42346.0,42331.0,0.15]
[1644611154865,0.118279,42346.0,42335.0,0.28430056]
[1644611155066,0.0001,42346.0,42335.0,0.26476335]
[1644611155263,0.0001,42345.0,42335.0,0.31476335]
[1644611155463,0.0001,42349.0,42332.0,0.37120952]
[1644611155665,0.05,42336.0,42331.0,0.05]
[1644611155866,0.236398,42338.0,42337.0,0.1]
[1644611156066,0.08668224,42340.0,42337.0,0.1]
[1644611156067,0.35175337,42340.0,42337.0,0.1]
[1644611156267,0.3001,42345.0,42337.0,0.15]
[1644611156467,1.86355683,42362.0,42337.0,0.15]
[1644611156468,0.0001,42344.0,42337.0,0.15]
[1644611156668,0.0001,42344.0,42337.0,0.2]
[1644611156865,0.37560916,42345.0,42338.0,0.38265518]
[1644611157070,0.37560916,42345.0,42337.0,0.2]
[1644611157071,0.3,42344.0,42337.0,0.15]
[1644611157268,0.09201445,42343.0,42337.0,0.1]
[1644611157530,0.09452595,42342.0,42337.0,0.1]
[1644611157729,0.37560916,42345.0,42337.0,0.1]
[1644611157730,0.0433,42348.0,42338.0,0.00034442]
[1644611157933,0.09184024,42347.0,42338.0,0.00034442]
[1644611158134,0.0433,42348.0,42338.0,0.00034442]
[1644611158135,0.059084,42345.0,42338.0,0.00034442]
[1644611158333,0.059102,42343.0,42338.0,0.00034442]
[1644611158833,0.85489893,42342.0,42338.0,0.00034442]
[1644611159231,0.059099,42340.0,42338.0,0.36927382]
[1644611159431,0.11819764,42340.0,42338.0,0.36927382]
[1644611159831,0.11819764,42340.0,42338.0,0.3689294]
[1644611160035,0.059092,42343.0,42338.0,0.66850795]
[1644611160434,0.118176,42343.0,42338.0,0.66850795]
[1644611160639,0.118156,42353.0,42338.0,0.66850795]
[1644611160837,0.118156,42353.0,42339.0,0.18920979]
[1644611161033,0.118156,42353.0,42338.0,0.4189294]
[1644611161034,0.11816662,42353.0,42338.0,0.4189294]
[1644611161266,0.0938229,42349.0,42340.0,0.00034441]
[1644611161467,0.05908531,42347.0,42340.0,0.00034441]
[1644611161666,0.07332817,42342.0,42340.0,0.00034441]
[1644611161866,0.33958954,42341.0,42340.0,0.00034441]
[1644611162067,0.0433,42341.0,42340.0,0.00034441]
[1644611162271,0.09080786,42340.0,42337.0,0.1]
[1644611162467,0.09080786,42340.0,42338.0,0.00034442]
[1644611162468,0.13410786,42340.0,42338.0,0.00034442]
[1644611162668,0.22059988,42340.0,42338.0,0.00034442]
[1644611162871,0.059101,42339.0,42338.0,0.30747685]
[1644611163069,0.059101,42339.0,42338.0,0.00034442]
[1644611163468,0.059101,42339.0,42337.0,0.15]
[1644611163669,0.118194,42339.0,42338.0,0.31177439]
[1644611164073,7.475e-05,42340.0,42338.0,0.31177439]
[1644611164272,7.475e-05,42340.0,42338.0,0.6248244]
[1644611164472,7.475e-05,42340.0,42338.0,0.36177439]
[1644611165518,7.475e-05,42340.0,42338.0,0.70544633]
[1644611165721,7.475e-05,42340.0,42338.0,0.36177439]
[1644611165918,7.475e-05,42340.0,42337.0,0.1]
[1644611166121,0.11825575,42340.0,42337.0,0.10027124]
[1644611166322,0.118181,42339.0,42337.0,0.10027124]
[1644611166721,0.00145278,42338.0,42337.0,0.10027124]
[1644611166922,0.00145278,42338.0,42337.0,0.46869544]
[1644611167120,0.00145278,42338.0,42337.0,0.4684242]
[1644611167319,0.00145278,42338.0,42337.0,0.5184242]
[1644611167625,0.00145278,42338.0,42337.0,0.15]
[1644611167833,0.30145278,42338.0,42337.0,0.1]
[1644611168030,1.05,42337.0,42335.0,0.00027125]
[1644611168224,0.0433,42336.0,42335.0,0.00027125]
[1644611168425,0.0433,42336.0,42320.0,0.0001]
[1644611168426,0.40081491,42326.0,42320.0,0.0001]
[1644611168668,0.28766705,42325.0,42321.0,0.31435473]
[1644611168864,0.11821,42331.0,42321.0,0.31435473]
[1644611169269,0.05,42337.0,42324.0,0.05]
[1644611169465,0.05,42337.0,42325.0,0.35822916]
[1644611169667,0.11963878,42338.0,42336.0,0.34174421]
[1644611169668,0.00145278,42338.0,42336.0,0.34174421]
[1644611169866,0.168166,42347.0,42337.0,0.83001081]
[1644611169867,0.05,42347.0,42337.0,0.83001081]
[1644611170065,0.05,42347.0,42337.0,0.50019781]
[1644611170268,0.0221,42343.0,42337.0,0.65019781]
[1644611170464,0.00145278,42339.0,42337.0,0.65019781]
[1644611171263,0.00145278,42339.0,42338.0,0.31210566]
[1644611171663,0.00145278,42339.0,42338.0,0.46210566]
[1644611172516,0.00145278,42339.0,42338.0,0.45872578]
[1644611172919,0.00145278,42339.0,42338.0,0.35872578]
[1644611173113,0.00145278,42339.0,42338.0,0.45872578]
[1644611173715,0.0221,42343.0,42338.0,0.45872578]
[1644611173716,0.00145278,42342.0,42338.0,0.45872578]
[1644611173916,0.00145278,42342.0,42338.0,0.14662012]
[1644611174218,0.00145278,42342.0,42339.0,0.05]
[1644611174618,0.00145278,42342.0,42338.0,0.00034507]
[1644611175216,0.081183,42343.0,42339.0,0.6]
[1644611175217,0.01634033,42343.0,42339.0,0.6]
[1644611175418,0.01634033,42343.0,42338.0,0.00034507]
[1644611175616,0.01634033,42343.0,42337.0,0.50019781]
[1644611175816,0.01634033,42343.0,42342.0,0.25422126]
[1644611176018,0.01634033,42343.0,42337.0,0.50019781]
[1644611176866,0.01634033,42343.0,42338.0,0.05]
[1644611177065,0.01634033,42343.0,42341.0,0.25789713]
[1644611177973,0.00023127,42342.0,42341.0,0.25789713]
[1644611178765,0.00023127,42342.0,42340.0,0.1]
[1644611178967,0.00023127,42342.0,42337.0,0.50019781]
[1644611179165,0.00023127,42342.0,42337.0,0.55019781]
[1644611179369,0.00023127,42342.0,42339.0,0.00034743]
[1644611179767,0.00023127,42342.0,42340.0,0.33454904]
[1644611180024,0.00023127,42342.0,42341.0,0.05]
[1644611180628,0.00023127,42342.0,42340.0,0.15]
[1644611181025,0.00023127,42342.0,42341.0,0.05]
[1644611181224,0.00023127,42342.0,42341.0,0.05009595]
[1644611181825,0.05,42354.0,42341.0,9.595e-05]
[1644611182029,0.0001,42362.0,42345.0,0.2]
[1644611182227,0.059058,42364.0,42359.0,0.38703789]
[1644611182228,0.0001,42361.0,42359.0,0.38703789]
[1644611182431,0.51,42369.0,42359.0,0.38713384]
[1644611182432,0.0001,42363.0,42359.0,0.38713384]
[1644611182636,0.0001,42363.0,42361.0,0.679813]
[1644611182832,0.0001,42368.0,42362.0,0.2]
[1644611183134,0.01,42369.0,42363.0,0.05903322]
[1644611183335,0.01,42369.0,42366.0,0.24544285]
[1644611183534,0.05,42382.0,42368.0,1.45]
[1644611183780,0.01,42389.0,42376.0,0.05]
[1644611183982,0.01,42389.0,42369.0,0.35]
[1644611184191,0.01,42389.0,42374.0,0.15]
[1644611184378,0.01,42389.0,42387.0,0.31777833]
[1644611184579,0.01,42389.0,42388.0,0.310453]
[1644611184980,0.05,42396.0,42388.0,0.310453]
[1644611185182,0.01,42409.0,42389.0,1.05]
[1644611185383,0.01,42409.0,42394.0,0.45804118]
[1644611185384,0.28959397,42402.0,42394.0,0.45804118]
[1644611185581,0.00039583,42391.0,42389.0,0.15]
[1644611185979,0.00039583,42391.0,42389.0,0.05]
[1644611186179,0.00039583,42391.0,42388.0,0.47845191]
[1644611186379,0.00039583,42391.0,42389.0,0.05900423]
[1644611186578,0.32886631,42398.0,42388.0,0.360453]
[1644611186785,0.00039582,42392.0,42388.0,0.360453]
[1644611187619,0.28959397,42402.0,42388.0,0.360453]
[1644611187821,0.059013,42399.0,42388.0,0.360453]
[1644611188020,0.00040067,42392.0,42389.0,0.15]
[1644611188218,0.00040067,42392.0,42390.0,0.05]
[1644611188826,0.0001,42400.0,42388.0,0.360453]
[1644611189020,0.0001,42400.0,42390.0,0.29988501]
[1644611189221,0.00040067,42393.0,42390.0,0.34988501]
[1644611189520,0.00040067,42393.0,42386.0,0.58320747]
[1644611189721,0.00040067,42393.0,42386.0,0.23948539]
[1644611190119,0.0001,42400.0,42399.0,0.36369363]
[1644611190723,0.0001,42406.0,42399.0,0.41369363]
[1644611190929,0.0001,42406.0,42399.0,0.05]
[1644611191186,0.0001,42406.0,42391.0,0.0433]
[1644611191187,0.0001,42407.0,42391.0,0.0433]
[1644611191386,0.08843987,42405.0,42391.0,0.0433]
[1644611191586,0.08883943,42405.0,42391.0,0.0433]
[1644611191788,0.0001,42404.0,42391.0,0.0433]
[1644611191987,0.118117,42404.0,42397.0,0.34006481]
[1644611192289,0.0001,42403.0,42397.0,0.34006481]
[1644611192487,0.059105,42403.0,42397.0,0.05]
[1644611192687,0.059005,42403.0,42397.0,0.05]
[1644611192886,0.059005,42403.0,42391.0,0.44224128]
[1644611192887,0.08038086,42398.0,42391.0,0.49224128]
[1644611193088,0.08038086,42398.0,42392.0,6.129e-05]
[1644611193295,0.109112,42397.0,42392.0,6.129e-05]
[1644611193687,0.0001,42396.0,42392.0,6.129e-05]
[1644611193888,0.05,42394.0,42392.0,6.129e-05]
[1644611194289,0.0001,42393.0,42392.0,6.129e-05]
[1644611194490,0.13939713,42393.0,42392.0,6.129e-05]
[1644611194691,0.3434,42393.0,42392.0,6.129e-05]
[1644611194935,0.3434,42393.0,42374.0,0.42]
[1644611194936,0.236186,42386.0,42374.0,0.42]
[1644611195125,0.05,42377.0,42374.0,0.42]
[1644611195326,0.49949351,42377.0,42374.0,0.42]
[1644611195524,1.05,42376.0,42373.0,0.00113905]
[1644611195725,0.59304432,42377.0,42373.0,0.00113905]
[1644611195726,0.05,42374.0,42373.0,0.00113905]
[1644611195924,0.05,42374.0,42361.0,0.38448612]
[1644611195925,0.36976205,42367.0,42361.0,0.38448612]
[1644611196326,0.36976205,42367.0,42350.0,0.11809909]
[1644611196327,0.07928377,42359.0,42350.0,0.11809909]
[1644611196531,0.07928377,42359.0,42349.0,0.0011]
[1644611196927,0.059068,42358.0,42356.0,0.29914539]
[1644611197125,0.236274,42358.0,42349.0,0.21673337]
[1644611197324,0.236274,42358.0,42352.0,0.40088871]
[1644611197528,0.0433,42357.0,42352.0,0.40088871]
[1644611198770,0.0225,42356.0,42353.0,0.00138543]
[1644611199766,0.0225,42356.0,42353.0,0.0011]
[1644611200269,0.0225,42356.0,42353.0,0.3511]
[1644611200468,0.34157088,42373.0,42353.0,0.3511]
[1644611200469,0.34157088,42373.0,42366.0,0.42]
[1644611200669,0.0933,42374.0,42366.0,0.42]
[1644611200867,0.0933,42374.0,42370.0,0.26293315]
[1644611200868,0.059053,42371.0,42370.0,0.26293315]
[1644611201072,0.0001,42377.0,42370.0,0.26293315]
[1644611201272,0.0003157,42375.0,42366.0,0.47]
[1644611201468,0.0003157,42375.0,42366.0,0.47009593]
[1644611201672,0.0003157,42375.0,42366.0,0.52009593]
[1644611201870,0.0003157,42375.0,42373.0,0.2]
[1644611202068,0.0001,42379.0,42374.0,0.91724484]
[1644611202278,0.0001,42379.0,42374.0,1.27581605]
[1644611202517,0.0001,42389.0,42383.0,0.3517049]
[1644611202717,0.057222,42389.0,42383.0,0.4017049]
[1644611202918,0.059019,42386.0,42383.0,0.4017049]
[1644611203123,0.05,42400.0,42383.0,0.4017049]
[1644611203320,0.118031,42394.0,42392.0,0.32154894]
[1644611203517,0.059012,42399.0,42383.0,0.5017049]
[1644611203718,0.0003153,42387.0,42383.0,0.5017049]
[1644611203920,0.0003153,42387.0,42385.0,0.83688343]
[1644611204119,0.0003153,42387.0,42386.0,0.67905136]
[1644611204424,5.3e-06,42387.0,42386.0,0.87905136]
[1644611204627,0.09515194,42418.0,42386.0,0.87905136]
[1644611204628,0.00026911,42421.0,42386.0,1.28449551]
[1644611204818,0.00026911,42421.0,42399.0,0.35]
[1644611204819,0.058985,42417.0,42399.0,0.35]
[1644611205021,0.00126664,42404.0,42400.0,0.2]
[1644611205217,0.00126664,42404.0,42401.0,0.16796734]
[1644611205419,0.4098101,42403.0,42401.0,0.05]
[1644611205618,0.33241823,42403.0,42396.0,0.3]
[1644611205816,0.33241823,42403.0,42388.0,0.0433]
[1644611205817,0.33241823,42403.0,42389.0,0.1]
[1644611206020,0.32846133,42402.0,42386.0,0.05901061]
[1644611206267,0.27846133,42402.0,42385.0,9.593e-05]
[1644611206472,0.059016,42395.0,42385.0,0.35009593]
[1644611206667,0.08223874,42392.0,42388.0,0.34339284]
[1644611206975,0.08223874,42392.0,42385.0,9.593e-05]
[1644611206976,0.34418625,42391.0,42385.0,9.593e-05]
[1644611207269,0.39418625,42391.0,42385.0,9.593e-05]
[1644611207469,0.34418625,42391.0,42385.0,9.593e-05]
[1644611207870,0.34418625,42391.0,42386.0,7.175e-05]
[1644611208172,0.118143,42390.0,42386.0,7.175e-05]
[1644611208369,0.11856626,42390.0,42386.0,7.175e-05]
[1644611208569,0.0001,42389.0,42386.0,7.175e-05]
[1644611208771,0.28034816,42389.0,42386.0,7.175e-05]
[1644611209170,0.0001,42388.0,42386.0,7.175e-05]
[1644611209573,0.0501,42388.0,42386.0,7.175e-05]
[1644611210017,0.0001,42387.0,42386.0,7.175e-05]
[1644611210918,0.0501,42388.0,42386.0,7.175e-05]
[1644611211118,0.0001,42388.0,42387.0,0.30806837]
[1644611211319,0.00042276,42389.0,42387.0,0.35796837]
[1644611211523,0.00042276,42389.0,42387.0,0.15]
[1644611211719,0.05,42401.0,42388.0,0.2]
[1644611211919,0.05,42401.0,42388.0,0.05]
[1644611212120,0.37347814,42401.0,42393.0,0.19387861]
[1644611212318,0.059006,42397.0,42393.0,0.24387861]
[1644611212622,0.49148914,42401.0,42393.0,0.24387861]
[1644611212623,0.05,42401.0,42394.0,1.629813]
[1644611212823,0.01,42409.0,42399.0,0.195]
[1644611213020,0.01,42409.0,42396.0,0.11797342]
[1644611213223,0.005,42409.0,42401.0,0.15]
[1644611213423,0.00170319,42406.0,42401.0,0.15]
[1644611213663,0.00170319,42406.0,42402.0,1.22163196]
[1644611213866,0.00170319,42406.0,42405.0,0.15]
[1644611214076,0.00170319,42406.0,42405.0,0.479813]
[1644611214368,0.3893879,42426.0,42405.0,0.479813]
[1644611214369,0.01,42429.0,42422.0,0.195]
[1644611214567,0.01,42429.0,42415.0,0.0933]
[1644611214766,0.01,42429.0,42427.0,0.66031643]
[1644611214966,0.01,42429.0,42428.0,0.55518271]
[1644611215364,0.01,42429.0,42428.0,0.36461763]
[1644611215566,0.01,42429.0,42422.0,0.11790836]
[1644611215766,0.01,42429.0,42420.0,0.0433]
[1644611215966,0.058966,42427.0,42420.0,0.0433]
[1644611216166,0.058966,42427.0,42422.0,0.329813]
[1644611216367,0.058966,42427.0,42424.0,0.19983152]
[1644611216569,0.0001,42426.0,42425.0,0.31595032]
[1644611217169,0.0001,42426.0,42424.0,0.05]
[1644611217434,0.058973,42424.0,42416.0,0.0433]
[1644611217632,0.15801238,42424.0,42407.0,1.05]
[1644611217829,0.0001,42423.0,42407.0,1.395]
[1644611218029,0.058981,42422.0,42407.0,1.05]
[1644611218231,0.05898,42418.0,42414.0,0.28894484]
[1644611218731,0.058974,42416.0,42414.0,0.28894484]
[1644611219145,0.0806585,42410.0,42405.0,6.823e-05]
[1644611219336,0.058984,42410.0,42405.0,6.823e-05]
[1644611219532,0.0001,42409.0,42405.0,6.823e-05]
[1644611219736,0.058992,42407.0,42405.0,6.823e-05]
[1644611220136,0.31871169,42406.0,42405.0,6.823e-05]
[1644611220337,0.38280376,42406.0,42405.0,6.823e-05]
[1644611220735,0.06419207,42406.0,42405.0,6.823e-05]
[1644611221035,0.0001,42406.0,42405.0,6.823e-05]
[1644611221479,0.0001,42406.0,42405.0,0.34044934]
[1644611221679,0.0001,42406.0,42405.0,6.823e-05]
[1644611222575,0.0001,42406.0,42405.0,0.26394046]
[1644611222779,0.0001,42406.0,42405.0,0.74375346]
[1644611222980,0.0001,42406.0,42405.0,0.47988123]
[1644611223178,0.00042869,42408.0,42407.0,0.32988111]
[1644611223380,0.00042869,42408.0,42407.0,0.29506811]
[1644611223581,0.00042869,42408.0,42407.0,0.6997014]
[1644611223778,0.07126103,42419.0,42407.0,0.6997014]
[1644611223979,0.058977,42416.0,42411.0,0.73917438]
[1644611224188,0.0001,42418.0,42415.0,0.195]
[1644611224479,0.37159571,42419.0,42411.0,0.73917438]
[1644611224480,0.37159571,42419.0,42416.0,0.05]
[1644611224678,0.0012669,42419.0,42416.0,0.05]
[1644611224933,0.0012669,42419.0,42415.0,0.1949]
[1644611225128,0.05897,42419.0,42411.0,0.50908984]
[1644611225527,0.05897,42419.0,42411.0,0.39114628]
[1644611226128,0.05897,42419.0,42416.0,0.20897564]
[1644611226333,0.28098735,42427.0,42416.0,0.20897564]
[1644611226334,0.05896,42425.0,42418.0,0.574713]
[1644611226530,0.00172343,42423.0,42419.0,0.329813]
[1644611226731,0.00172343,42423.0,42422.0,0.524713]
[1644611226930,0.00172343,42423.0,42422.0,0.96666582]
[1644611227130,0.00172343,42423.0,42422.0,1.67149089]
[1644611227331,0.00162343,42429.0,42423.0,1.05]
[1644611227531,0.058949,42434.0,42431.0,0.24059606]
[1644611227834,0.058949,42434.0,42431.0,0.05]
[1644611228234,0.52847092,42437.0,42430.0,0.05]
[1644611228434,0.3,42436.0,42431.0,0.05894946]
[1644611228668,0.3,42436.0,42430.0,0.16789892]
[1644611228669,0.058966,42434.0,42430.0,0.16789892]
[1644611228868,0.11793,42433.0,42430.0,0.11789892]
[1644611229084,0.11793,42433.0,42410.0,0.27912933]
[1644611229085,0.058974,42428.0,42410.0,0.27912933]
[1644611229276,0.36165846,42422.0,42414.0,0.30525893]
[1644611229471,0.058975,42422.0,42419.0,0.11794638]
[1644611231073,0.07623213,42421.0,42417.0,6.752e-05]
[1644611231274,0.2892355,42420.0,42418.0,0.00039074]
[1644611231671,0.38162018,42419.0,42418.0,0.00039074]
[1644611231873,0.38162018,42419.0,42417.0,6.752e-05]
[1644611231874,1.15367215,42418.0,42417.0,6.752e-05]
[1644611232072,1.15367215,42418.0,42417.0,7.52e-06]
[1644611232073,1.71845978,42418.0,42417.0,7.52e-06]
[1644611232270,0.0933,42418.0,42417.0,7.52e-06]
[1644611232527,0.0433,42418.0,42417.0,7.52e-06]
[1644611232727,0.04356019,42418.0,42408.0,0.27190266]
[1644611232929,0.058989,42415.0,42406.0,0.21189536]
[1644611233127,0.058989,42415.0,42405.0,0.05899675]
[1644611233128,0.117988,42409.0,42405.0,0.05899675]
[1644611233325,0.08415994,42407.0,42405.0,0.05899675]
[1644611233526,0.08415994,42407.0,42403.0,0.00016329]
[1644611233726,0.20216494,42407.0,42405.0,0.00010525]
[1644611234027,0.176986,42408.0,42405.0,0.00010525]
[1644611234631,0.11799,42408.0,42405.0,0.00010525]
[1644611234828,0.31227853,42407.0,42403.0,0.28274412]
[1644611235127,0.11799,42408.0,42404.0,0.00010526]
[1644611235325,0.11799,42408.0,42404.0,0.00020115]
[1644611235726,0.11799,42408.0,42404.0,0.05919962]
[1644611235926,0.11799,42408.0,42404.0,0.05909436]
[1644611235927,0.31916427,42405.0,42404.0,0.05909436]
[1644611236196,0.31916427,42405.0,42404.0,0.05944322]
[1644611236394,0.058989,42408.0,42404.0,0.05944322]
[1644611236797,0.058982,42411.0,42404.0,0.05944322]
[1644611236999,0.11322919,42414.0,42404.0,0.05944322]
[1644611237202,0.176958,42427.0,42404.0,0.05944322]
[1644611237203,0.39982306,42427.0,42413.0,0.1949]
[1644611237399,0.00026024,42418.0,42415.0,0.3449]
[1644611237598,0.32584812,42422.0,42415.0,0.3449]
[1644611237801,0.058971,42419.0,42415.0,0.4449]
[1644611238000,0.058971,42419.0,42416.0,0.05]
[1644611238199,0.058971,42419.0,42418.0,0.2933562]
[1644611238401,0.32584812,42422.0,42416.0,0.15]
[1644611238600,0.32584812,42422.0,42416.0,0.22692377]
[1644611238810,0.07915944,42421.0,42416.0,0.17692377]
[1644611239001,0.32584812,42422.0,42416.0,0.16794918]
[1644611239400,0.25298518,42421.0,42416.0,0.16794918]
[1644611239610,0.108986,42418.0,42407.0,0.11804675]
[1644611239941,0.30392846,42408.0,42407.0,0.05906501]
[1644611240133,0.058999,42409.0,42407.0,0.05906501]
[1644611241936,0.058999,42409.0,42407.0,7.104e-05]
[1644611242140,0.00026021,42411.0,42407.0,7.104e-05]
[1644611242340,0.656965,42431.0,42410.0,0.1949]
[1644611242341,0.00026021,42416.0,42410.0,0.1949]